Cogmind - Beta 14 @@@ ROGUE MODE // 2024.09.22 @ 12:56:05 Player: Daffa0360 Result: Self-destructed Performance ------------- Evolutions (4) 2000 Regions Visited (11) 2200 Robots Destroyed (63) 315 Value Destroyed (2716) 2716 Prototype IDs (25) 500 Alien Tech Used (0) 0 Bonus (3087) 3087 TOTAL SCORE: 10818 Bonus ------- High Alert Combat Kills 61 Follower Combat Kills 326 Entered Garrisons 400 Used RIF Installer 1500 Entered DSFs 500 Aligned with FarCom 300 Cogmind --------- Core Integrity 345/850 Matter 204/300 Energy 22/100 System Corruption 0% Temperature Cool (18) Movement Core (100) Ox1 Location -6/Garrison Parts ------- > --- POWER (1) -------- (None) > --- PROPULSION (4) --- (None) > --- UTILITY (8) ------ Advanced Targeting Computer Hacking Suite Relay Coupler [Cutter] (31) Relay Coupler [Sentry] (2) > --- WEAPON (2) ------- Variable Charge Gun > --- INVENTORY (5) ---- Relay Coupler [Swarmer] (31) Relay Coupler [Specialist] (21) Skeleton Box Heavy Pick Peak State ------------ > --- POWER ------------ Angular Momentum Engine > --- PROPULSION ------- Armored Huge Wheel Armored Huge Wheel > --- UTILITY ---------- Improved Cooling System Targeting Computer Kinecellerator Phase Shifter Improved Light Armor Plating Improved Medium Armor Plating Reflective Plating Authchip [R/Combat] > --- WEAPON ----------- Heavy Flak Cannon Heavy Pick > --- INVENTORY -------- Improved Deuterium Engine Force Booster Skeleton Box Gatling Laser Plasma Cannon [Rating: 61] Favorites ----------- Power Light Nuclear Core Engine Improved Ion Engine Power Core Light Nuclear Core Propulsion Combat Airjet Leg Improved Titanium Leg Wheel Armored Huge Wheel Hover Unit Combat Airjet Flight Unit Nuclear Pulse Thruster Utility Improved Light Armor Plating Device Kinecellerator Storage Small Storage Unit Processor Advanced Terrain Scan Processor Hackware Authchip [R/Combat] Protection Improved Light Armor Plating Weapon Heavy Flak Cannon Energy Gun Heavy Laser Energy Cannon Plasma Cannon Ballistic Gun Light Assault Rifle Ballistic Cannon Heavy Flak Cannon Launcher Concussive RPG Piercing Weapon Heavy Pick Special Melee Weapon Improved Datajack Build | -11 -10 -10 -10 -9 -8 -8 -8 -7 -7 -6 -6 ------- Run | Yrd Mat Min Exi Min Mat Gar Mat Fac DSF Fac Gar Slots Evolved 8 | . . . . . 4 . . 2 . 2 . Power . | . . . . . . . . . . . . Propulsion 2 | . . . . . . . . 1 . 1 . Utility 6 | . . . . . 4 . . 1 . 1 . Weapon . | . . . . . . . . . . . . Parts Attached 81 | . . 3 . 1 . 15 14 2 15 25 6 Power 10 | . . . . . . 4 1 . 1 3 1 Engine 6 | . . . . . . 1 1 . 1 2 1 Core 4 | . . . . . . 3 . . . 1 . Reactor . | . . . . . . . . . . . . Propulsion 11 | . . 2 . . . 1 4 1 . 3 . Treads . | . . . . . . . . . . . . Leg 1 | . . . . . . . . 1 . . . Wheel 5 | . . . . . . 1 2 . . 2 . Hover 4 | . . 2 . . . . 2 . . . . Flight 1 | . . . . . . . . . . 1 . Utility 37 | . . 1 . . . 3 5 1 11 14 2 Device 10 | . . . . . . . 2 1 2 5 . Storage . | . . . . . . . . . . . . Processor 3 | . . . . . . 1 . . 1 1 . Hackware 6 | . . . . . . . . . 1 3 2 Protection 18 | . . 1 . . . 2 3 . 7 5 . Artifact . | . . . . . . . . . . . . Weapon 23 | . . . . 1 . 7 4 . 3 5 3 Energy Gun 7 | . . . . . . 2 2 . 1 . 2 Energy Cannon 3 | . . . . . . . . . 1 2 . Ballistic Gun 3 | . . . . 1 . 1 1 . . . . Ballistic Cannon 5 | . . . . . . 2 1 . 1 1 . Launcher 2 | . . . . . . 2 . . . . . Special Weapon . | . . . . . . . . . . . . Impact Weapon . | . . . . . . . . . . . . Slashing Weapon . | . . . . . . . . . . . . Piercing Weapon 2 | . . . . . . . . . . 2 . Special Melee Weapon 1 | . . . . . . . . . . . 1 Unidentified Prototypes 2 | . . . . . . . 2 . . . . Parts Lost 33 | . . 1 . . . 5 . . 9 15 3 Power 4 | . . . . . . 2 . . 1 1 . Propulsion 4 | . . 1 . . . . . . . 2 1 Utility 18 | . . . . . . 1 . . 7 9 1 Weapon 7 | . . . . . . 2 . . 1 3 1 Highest Loss Streak 9 | . . 1 . . . 3 . . 9 9 3 To Critical Strikes . | . . . . . . . . . . . . Average Slot Usage (%) 77 | . 85 86 100 100 63 69 75 82 83 77 39 Engine 4 | . 14 14 14 14 9 . 7 7 5 2 . Core 3 | . . . . . . 8 . . . 3 . Leg 1 | . 28 18 . . . . . 4 7 . . Wheel 4 | . . . . . . 2 3 7 7 9 . Hover 8 | . . 6 28 28 18 15 12 . . . . Device 8 | . . . . . . . 9 17 12 17 . Storage 6 | . 14 14 14 14 9 9 9 7 5 . . Processor 5 | . . . . . . 7 9 7 5 5 6 Hackware 2 | . . . . . . . . . . 3 18 Protection 13 | . . 3 14 14 9 8 7 15 21 19 . Energy Gun 6 | . 14 14 14 14 9 8 8 15 5 . 4 Energy Cannon 1 | . . . . . . . . . 1 4 . Ballistic Gun 2 | . 14 14 14 14 9 1 4 . . . . Ballistic Cannon 4 | . . . . . . 7 3 . 7 5 . Peak Build Rating 61 | 6 6 17 18 19 19 31 37 44 47 61 38 Average Rating 35 | 6 6 8 17 18 19 28 26 39 38 52 25 On Entrance 21 | 6 6 6 17 18 19 19 16 37 44 47 18 Naked Turns . | . . . . . . . . . . . . Heaviest Build 49 | 12 12 15 15 15 15 29 33 33 44 49 6 Greatest Support 56 | 20 20 24 24 24 24 24 37 37 37 56 6 Greatest Overweight (x) 10 | . . 1 . . . 2 10 1 1 1 1 Average Overweight (x) . | . . . . . . . . . . . . Largest Inventory Capacity 8 | 8 8 8 8 8 8 8 8 8 8 5 5 Average Capacity 6 | 8 8 8 8 8 8 8 8 8 7 5 5 Most Carried 8 | 6 6 8 6 8 8 8 8 8 8 5 5 Average Carried 6 | 6 6 6 5 7 8 6 7 7 6 4 4 Final Capacity 8 | 8 8 8 8 8 8 8 8 8 5 5 5 Final Carried 8 | 6 6 6 5 8 8 6 8 8 5 5 4 Class Distribution -------------------- 69% | Mutant 25% | Scavenger-Mutant Dominant Class ---------------- Mutant | -10/Materials Mutant | -10/Mines Mutant | -10/Exiles Mutant | -9/Mines Mutant | -8/Materials Scavenger-Mutant | -8/Garrison Scavenger-Mutant | -8/Materials Mutant | -7/Factory Mutant | -7/DSF Mutant | -6/Factory Bothacker-Mutant | -6/Garrison Resources | -11 -10 -10 -10 -9 -8 -8 -8 -7 -7 -6 -6 ----------- Run | Yrd Mat Min Exi Min Mat Gar Mat Fac DSF Fac Gar Matter Collected 2153 | 200 . 36 . . . 555 170 . 412 735 45 Remotely . | . . . . . . . . . . . . Salvage Created 2220 | . . 35 . . . 391 318 . 629 847 . Parts 118 | . . 2 . . . 28 18 . 18 52 . Haulers Intercepted 1 | . . . . . . . 1 . . . . Recyclers Shooed 3 | . . . . . . . 1 . . 2 . Parts Field Recycled . | . . . . . . . . . . . . Retrieved Matter . | . . . . . . . . . . . . Parts Self-Destructed . | . . . . . . . . . . . . Prevented . | . . . . . . . . . . . . Kills | -11 -10 -10 -10 -9 -8 -8 -8 -7 -7 -6 -6 ------- Run | Yrd Mat Min Exi Min Mat Gar Mat Fac DSF Fac Gar Combat Hostiles Destroyed 51 | . . 2 . . . 14 4 . 12 19 . Guns 13 | . . 2 . . . 6 2 . 3 . . Cannons 37 | . . . . . . 7 2 . 9 19 . AOE 1 | . . . . . . 1 . . . . . Classes Destroyed 16 | . . 1 . . . 3 3 . 3 6 . Worker 3 | . . . . . . . . . . 3 . Builder 2 | . . . . . . . . . . 2 . Hauler 1 | . . . . . . . 1 . . . . Recycler 2 | . . . . . . . 2 . . . . Operator 1 | . . . . . . . . . . 1 . Watcher 3 | . . . . . . . 1 . . 2 . Swarmer 10 | . . 2 . . . 3 . . . 5 . Cutter 3 | . . . . . . 3 . . . . . Grunt 18 | . . . . . . 3 2 . 8 5 . Brawler 1 | . . . . . . . . . . 1 . Duelist 1 | . . . . . . . . . 1 . . Sentry 11 | . . . . . . 5 2 . . 4 . Specialist 2 | . . . . . . . . . 2 . . Hunter 1 | . . . . . . . . . . 1 . Programmer 3 | . . . . . . . . . . 3 . Heavy 1 | . . . . . . . . . 1 . . Best Kill Streak 7 | . . 2 . . . 5 4 . 7 6 . Combat Bots Only 7 | . . 2 . . . 5 2 . 7 5 . Max Kills in Single Turn 3 | . . 1 . . . 1 3 . 1 3 . Gunslinging . | . . . . . . . . . . . . Exploded 1 | . . . . . . 1 . . . . . Melee . | . . . . . . . . . . . . Uniques/NPCs Destroyed . | . . . . . . . . . . . . Combat | -11 -10 -10 -10 -9 -8 -8 -8 -7 -7 -6 -6 -------- Run | Yrd Mat Min Exi Min Mat Gar Mat Fac DSF Fac Gar Hostile Shots Fired 605 | . 5 17 . . . 121 22 . 163 196 81 Missed 203 | . 3 1 . . . 33 7 . 49 69 41 Damage Taken 5912 | . 16 324 . . . 1240 222 64 1956 1779 311 Core 1119 | . . 113 . . . 286 14 . 201 316 189 Absorbed by Shields 36 | . . . . . . 25 . . . . 11 Ignored by Resistances 88 | . . . . . . . . . . 88 . Regen/Repaired (Parts) 77 | . . . . . . . . . . 77 . Core Remaining (%) 67 | 100 . . . 54 . . 45 . 71 . . Volleys Fired 241 | . . 7 . . . 87 19 . 45 66 17 Largest 2 | . . 2 . . . 2 2 . 2 2 1 Hottest 143 | . . 60 . . . 117 100 . 124 143 85 Shots Fired 414 | . . 14 . . . 153 32 . 78 120 17 Gun 167 | . . 14 . . . 76 19 . 41 . 17 Cannon 246 | . . . . . . 76 13 . 37 120 . Launcher 1 | . . . . . . 1 . . . . . Special . | . . . . . . . . . . . . Kinetic 229 | . . 7 . . . 103 19 . 36 64 . Thermal 184 | . . 7 . . . 49 13 . 42 56 17 Explosive 1 | . . . . . . 1 . . . . . Electromagnetic . | . . . . . . . . . . . . Robot Hit Streak 13 | . . 3 . . . 8 6 . 11 13 8 Robot Miss Streak 12 | . . 2 . . . 6 5 . 4 12 1 Penetration Max . | . . . . . . . . . . . . Secondary Targets . | . . . . . . . . . . . . Shots Hit Robots 241 | . . 7 . . . 60 25 . 48 86 15 Core Hits 206 | . . 2 . . . 31 24 . 52 96 1 Critical Kills 1 | . . . . . . 1 . . . . . Critical Parts Destroyed 1 | . . . . . . 1 . . . . . Critical Strikes 3 | . . . . . . 2 . . 1 . . Burn 1 | . . . . . . . . . 1 . . Destroy 2 | . . . . . . 2 . . . . . Melee Attacks 8 | . . . . . . . . . . 6 2 Impact . | . . . . . . . . . . . . Slashing . | . . . . . . . . . . . . Piercing 6 | . . . . . . . . . . 6 . Sneak Attacks 1 | . . . . . . . . . . 1 . Combat Hostiles . | . . . . . . . . . . . . Follow-up Attacks . | . . . . . . . . . . . . Damage Inflicted 6150 | . . 66 . . . 1073 672 . 1158 2901 280 Guns 1360 | . . 66 . . . 499 175 . 340 . 280 Cannons 4254 | . . . . . . 533 256 . 818 2647 . Explosions 450 | . . . . . . 41 241 . . 168 . Melee 86 | . . . . . . . . . . 86 . Ramming . | . . . . . . . . . . . . Kinetic 3359 | . . 33 . . . 717 299 . 792 1518 . Thermal 2496 | . . 33 . . . 315 373 . 366 1129 280 Explosive 41 | . . . . . . 41 . . . . . Electromagnetic 168 | . . . . . . . . . . 168 . Impact . | . . . . . . . . . . . . Slashing . | . . . . . . . . . . . . Piercing 86 | . . . . . . . . . . 86 . Highest Corruption 1 | . . . . . . . . . . 1 . Average Corruption 1 | . . . . . . . . . . 1 . Corruption Purged 1 | . . . . . . . . . . 1 . Corruption Blocked . | . . . . . . . . . . . . Effects 1 | . . . . . . . . . . 1 . Energy Discharges 1 | . . . . . . . . . . 1 . Overload Shots . | . . . . . . . . . . . . Overflow Damage 108 | . . . . . . . 35 . . 73 . Projectiles 73 | . . . . . . . . . . 73 . Explosions 35 | . . . . . . . 35 . . . . Melee . | . . . . . . . . . . . . Knockbacks 63 | . . . . . . 1 7 . 18 37 . Impact . | . . . . . . . . . . . . Kinetic 59 | . . . . . . 1 7 . 16 35 . Secondary 4 | . . . . . . . . . 2 2 . Self-Inflicted Damage 27 | . . . . . . 27 . . . . . Shots 1 | . . . . . . 1 . . . . . Rammed . | . . . . . . . . . . . . Targets Rammed . | . . . . . . . . . . . . Kicked . | . . . . . . . . . . . . Crushed . | . . . . . . . . . . . . Highest Temperature 790 | . . 40 . . . 410 254 . 790 566 27 Average Temperature 118 | . . 20 . . . 106 103 . 164 129 13 Received Heat Transfer 1662 | . . . . . . 432 117 . 576 465 72 Effects 32 | . . . . . . 3 6 . 11 12 . Shutdowns 4 | . . . . . . . . . 3 1 . Energy Bleed 2 | . . . . . . . . . . 2 . Interference 14 | . . . . . . 3 6 . 2 3 . Matter Decay 3 | . . . . . . . . . 1 2 . Damage (minor) 1 | . . . . . . . . . 1 . . Damage (major) 8 | . . . . . . . . . 4 4 . Siege Activations . | . . . . . . . . . . . . Robots Corrupted . | . . . . . . . . . . . . Combat Hostiles . | . . . . . . . . . . . . Parts Fried . | . . . . . . . . . . . . Impact Corruptions . | . . . . . . . . . . . . Robots Melted . | . . . . . . . . . . . . Combat Hostiles . | . . . . . . . . . . . . Parts Melted 3 | . . . . . . . . . . 3 . Heat Transferred 4206 | . . 75 . . . 631 533 . 753 1850 364 Parts Sabotaged . | . . . . . . . . . . . . Parts Stolen . | . . . . . . . . . . . . Parts Stripped . | . . . . . . . . . . . . Power Chain Reactions . | . . . . . . . . . . . . Alert | -11 -10 -10 -10 -9 -8 -8 -8 -7 -7 -6 -6 ------- Run | Yrd Mat Min Exi Min Mat Gar Mat Fac DSF Fac Gar Peak Influence 687 | . 15 55 . . 23 687 376 89 297 251 311 Initial 319 | . . 5 . . . 14 319 89 62 155 175 Average 209 | . . 28 . . 5 459 256 89 156 105 251 Maximum Alert Level 2 | . . . . . . 2 1 . 1 1 1 Low Security (%) 61 | 100 100 100 . 100 100 11 21 100 69 92 22 Level 1 21 | . . . . . . 23 78 . 30 7 77 Level 2 17 | . . . . . . 65 . . . . . Level 3 . | . . . . . . . . . . . . Level 4 . | . . . . . . . . . . . . Level 5 . | . . . . . . . . . . . . High Security . | . . . . . . . . . . . . Max Security . | . . . . . . . . . . . . Sterilizations 1 | . . . . . . . . . 1 . . Squads Dispatched 13 | . . . . 1 . . . . 3 9 . Investigation 2 | . . . . 1 . . . . . 1 . Extermination 3 | . . . . . . . . . . 3 . Reinforcement 8 | . . . . . . . . . 3 5 . Assault . | . . . . . . . . . . . . Garrison . | . . . . . . . . . . . . Intercept . | . . . . . . . . . . . . Searches Triggered . | . . . . . . . . . . . . Construction Impeded 2 | . . . . . . . . . . 2 . Haulers Reinforced 2 | . . . . . . . . . . 2 . Active Scanning Responses . | . . . . . . . . . . . . Cargo Convoy Interrupts . | . . . . . . . . . . . . Stealth | -11 -10 -10 -10 -9 -8 -8 -8 -7 -7 -6 -6 --------- Run | Yrd Mat Min Exi Min Mat Gar Mat Fac DSF Fac Gar Distress Signals 4 | . . . . . . . 2 . . 2 . Communications Jammed . | . . . . . . . . . . . . Distress Signals . | . . . . . . . . . . . . Times Spotted 99 | . 4 6 . . 1 25 12 . 15 31 5 Peak Tracking Total 7 | . 5 3 . . 1 6 4 . 7 6 2 Tactical Retreats 7 | . . . . . . 3 . . 2 2 . Traps | -11 -10 -10 -10 -9 -8 -8 -8 -7 -7 -6 -6 ------- Run | Yrd Mat Min Exi Min Mat Gar Mat Fac DSF Fac Gar Traps Triggered 15 | . . . . . . 11 . 2 . 2 . Indirectly . | . . . . . . . . . . . . Trap Hack Attempts . | . . . . . . . . . . . . Triggered . | . . . . . . . . . . . . Disarmed . | . . . . . . . . . . . . Reprogrammed . | . . . . . . . . . . . . Reused . | . . . . . . . . . . . . Traps Extracted . | . . . . . . . . . . . . Installed . | . . . . . . . . . . . . Triggered 1 | . . 1 . . . . . . . . . Machines | -11 -10 -10 -10 -9 -8 -8 -8 -7 -7 -6 -6 ---------- Run | Yrd Mat Min Exi Min Mat Gar Mat Fac DSF Fac Gar Machines Disabled 6 | . . . . . . . 2 . 1 1 2 Max in Single Turn 2 | . . . . . . . 2 . 1 1 1 Garrison Relay 2 | . . . . . . . . . . . 2 Machines Repaired . | . . . . . . . . . . . . Machines Dismantled . | . . . . . . . . . . . . Machines Sabotaged . | . . . . . . . . . . . . Overloaded Fab Kills . | . . . . . . . . . . . . Hacking | -11 -10 -10 -10 -9 -8 -8 -8 -7 -7 -6 -6 --------- Run | Yrd Mat Min Exi Min Mat Gar Mat Fac DSF Fac Gar Machines Accessed 21 | . . . 1 1 2 3 3 2 . 9 . Terminals 11 | . . . . . 1 3 1 1 . 5 . Fabricators 2 | . . . . . . . . . . 2 . Repair Stations 1 | . . . . . . . . . . 1 . Recycling Units . | . . . . . . . . . . . . Scanalyzers 3 | . . . . . . . 2 1 . . . Garrison Access 2 | . . . . . 1 . . . . 1 . Total Hacks 54 | . . . 1 1 4 6 17 3 . 22 . Successful 34 | . . . 1 1 2 2 14 1 . 13 . Failed 20 | . . . . . 2 4 3 2 . 9 . Catastrophic 1 | . . . . . . . . . . 1 . Database Lockouts . | . . . . . . . . . . . . Manual 14 | . . . 1 . 3 . 2 . . 8 . Terminals 31 | . . . . . 3 6 6 2 . 14 . Fabricators 4 | . . . . . . . . . . 4 . Repair Stations 3 | . . . . . . . . . . 3 . Recycling Units . | . . . . . . . . . . . . Scanalyzers 12 | . . . . . . . 11 1 . . . Garrison Access 2 | . . . . . 1 . . . . 1 . Terminal Hacks 10 | . . . 1 1 . 2 2 1 . 3 . Part Schematic 1 | . . . . . . . . . . 1 . Open Door 2 | . . . . 1 . 1 . . . . . Open DSF 2 | . . . . . . . . 1 . 1 . Alert Level 2 | . . . . . . . 1 . . 1 . Unreport Threat 1 | . . . . . . . 1 . . . . Patrol Navigation 1 | . . . . . . 1 . . . . . Derelict Proto ID Bank 1 | . . . 1 . . . . . . . . Fabricator Hacks 3 | . . . . . . . . . . 3 . Network Status 1 | . . . . . . . . . . 1 . Load Schematic 1 | . . . . . . . . . . 1 . Build 1 | . . . . . . . . . . 1 . Repair Station Hacks 2 | . . . . . . . . . . 2 . Scan Component 1 | . . . . . . . . . . 1 . Repair 1 | . . . . . . . . . . 1 . Recycling Unit Hacks . | . . . . . . . . . . . . Scanalyzer 10 | . . . . . . . 10 . . . . Insert Component 5 | . . . . . . . 5 . . . . Analyze 5 | . . . . . . . 5 . . . . Garrison Access Hacks 2 | . . . . . 1 . . . . 1 . Unlock Access 2 | . . . . . 1 . . . . 1 . Unauthorized Hacks 7 | . . . . . 1 . 2 . . 4 . Terminals 7 | . . . . . 1 . 2 . . 4 . Botnet 5 | . . . . . 1 . 1 . . 3 . Skim 2 | . . . . . . . 1 . . 1 . Fabricators . | . . . . . . . . . . . . Repair Stations . | . . . . . . . . . . . . Recycling Units . | . . . . . . . . . . . . Scanalyzers . | . . . . . . . . . . . . Garrison Access . | . . . . . . . . . . . . Data Cores Recovered 1 | . . . . . . . . . . 1 . Used . | . . . . . . . . . . . . Hacking Detections 12 | . . . . . 1 2 2 . . 7 . Full Trace Events 1 | . . . . . . . . . . 1 . Feedback Events . | . . . . . . . . . . . . Feedback Blocked . | . . . . . . . . . . . . Robot Schematics Acquired . | . . . . . . . . . . . . Robots Built . | . . . . . . . . . . . . Authchips . | . . . . . . . . . . . . Time . | . . . . . . . . . . . . Total Robot Build Rating . | . . . . . . . . . . . . Part Schematics Acquired 5 | . . . . . . . 4 . . 1 . Parts Built . | . . . . . . . . . . . . Authchips . | . . . . . . . . . . . . Time 47 | . . . . . . . . . . 47 . Total Part Build Rating . | . . . . . . . . . . . . Parts Repaired 1 | . . . . . . . . . . 1 . Time 50 | . . . . . . . . . . 50 . Parts Recycled . | . . . . . . . . . . . . Recycled Matter . | . . . . . . . . . . . . Retrieved Matter . | . . . . . . . . . . . . Retrieved Components . | . . . . . . . . . . . . Parts Scanalyzed 4 | . . . . . . . 4 . . . . Part Schematics Acquired 4 | . . . . . . . 4 . . . . Parts Damaged 2 | . . . . . . . 2 . . . . Bothacking | -11 -10 -10 -10 -9 -8 -8 -8 -7 -7 -6 -6 ------------ Run | Yrd Mat Min Exi Min Mat Gar Mat Fac DSF Fac Gar Used RIF Installer 3 | . . . . . . 1 . . . . 2 Command Fork 1 | . . . . . . . . . . . 1 Structural Interface 1 | . . . . . . . . . . . 1 Robots Hacked 2 | . . . . . . . . . . . 2 Non-combat . | . . . . . . . . . . . . Combat 2 | . . . . . . . . . . . 2 Robot Hacks Applied 2 | . . . . . . . . . . . 2 overwrite_iff 1 | . . . . . . . . . . . 1 formatsys_high 1 | . . . . . . . . . . . 1 Relay Couplers Released 10 | . . . . . . . . . . . 10 Machine Destruction 10 | . . . . . . . . . . . 10 Attached 2 | . . . . . . . . . . . 2 Fabnet Peak Effective % . | . . . . . . . . . . . . Robots Rewired . | . . . . . . . . . . . . Allies Hacked . | . . . . . . . . . . . . Hacks Repelled . | . . . . . . . . . . . . Allies | -11 -10 -10 -10 -9 -8 -8 -8 -7 -7 -6 -6 -------- Run | Yrd Mat Min Exi Min Mat Gar Mat Fac DSF Fac Gar Total Allies 6 | . . 2 . 1 . 1 . . . . 2 Largest Group 2 | . . 2 . 1 1 2 . . . . 1 Highest-Rated Group 51 | . . 38 . 31 31 51 . . . . 32 Highest-Rated Ally 32 | . . 31 . 31 31 31 . . . . 32 Total Orders . | . . . . . . . . . . . . Ally Attacks 17 | . . . . . 1 10 . . . . 6 Total Damage 535 | . . . . . . 270 . . . . 265 Kills 9 | . . . . . . 7 . . . . 2 Allies Corrupted . | . . . . . . . . . . . . Allies Melted . | . . . . . . . . . . . . Intel | -11 -10 -10 -10 -9 -8 -8 -8 -7 -7 -6 -6 ------- Run | Yrd Mat Min Exi Min Mat Gar Mat Fac DSF Fac Gar Robot Analysis Total . | . . . . . . . . . . . . Derelict Logs Recovered 2 | . . . . 2 . . . . . . . Drone Launches . | . . . . . . . . . . . . Drone Recoveries . | . . . . . . . . . . . . Exploration | -11 -10 -10 -10 -9 -8 -8 -8 -7 -7 -6 -6 ------------- Run | Yrd Mat Min Exi Min Mat Gar Mat Fac DSF Fac Gar Turns Passed 5907 | 8 53 183 170 480 21 1509 510 280 564 1899 230 Spaces Moved 4238 | 7 45 127 219 500 18 881 270 205 258 1400 308 Core 128 | . . . . . . . 2 . . 125 1 Treads . | . . . . . . . . . . . . Legs 226 | 7 45 84 . . . . . 90 . . . Wheels 1812 | . . . . . . 104 119 115 258 1216 . Hover 1706 | . . 43 219 500 18 777 149 . . . . Flight 366 | . . . . . . . . . . 59 307 Fastest Speed 40 | 120 120 77 77 77 77 77 77 100 100 40 40 Average Speed 93 | 120 120 114 77 77 77 102 94 125 111 96 40 Slowest Speed 550 | 120 120 190 77 77 77 147 550 200 115 115 100 Overloaded Moves . | . . . . . . . . . . . . Propulsion Burnouts . | . . . . . . . . . . . . Robots Hopped . | . . . . . . . . . . . . Cave-ins Triggered . | . . . . . . . . . . . . Exploration Rate (%) 37 | 2 13 31 60 92 6 71 22 7 92 32 25 Regions Visited 11 Branch Regions 3 Pre-discovered Areas . | . . . . . . . . . . . . Known Exits Taken 4 | . . . . . 1 . 1 1 . 1 . Unknown Exits Taken 5 | 1 1 1 1 1 . . . . . . . Scrap Searched 3 | . . . . 3 . . . . . . . Spaces Dug 16 | . . . . . . 12 . . . 4 . Terrain Destroyed 64 | . . . . . . 18 26 . 1 19 . Melee 3 | . . . . . . . . . . 3 . Projectile 35 | . . . . . . 18 . . 1 16 . AOE 26 | . . . . . . . 26 . . . . Terrain Rammed . | . . . . . . . . . . . . Walls Destroyed . | . . . . . . . . . . . . Machines Disabled . | . . . . . . . . . . . . Actions | -11 -10 -10 -10 -9 -8 -8 -8 -7 -7 -6 -6 --------- Run | Yrd Mat Min Exi Min Mat Gar Mat Fac DSF Fac Gar Total 5779 | 6 44 152 221 595 25 1335 500 228 465 1811 397 Wait 1031 | . . 13 . 88 7 243 176 13 140 292 59 Move 4228 | 6 44 126 218 499 18 880 269 204 257 1399 308 Hop . | . . . . . . . . . . . . Pick Up 40 | . . 2 1 5 . 6 10 2 5 6 3 Fast Attach 32 | . . 1 . . . 2 4 2 7 15 1 Attach 26 | . . 2 . . . 6 9 . 5 . 4 Detach 4 | . . . . . . . 4 . . . . Swap 23 | . . . . 1 . 7 1 . 3 10 1 Drop 41 | . . 1 2 2 . 4 8 2 3 17 2 Fire 241 | . . 7 . . . 87 19 . 45 66 17 Melee 8 | . . . . . . . . . . 6 2 Ram . | . . . . . . . . . . . . Kick . | . . . . . . . . . . . . Crush . | . . . . . . . . . . . . Escape Stasis 105 | . . . . . . 100 . 5 . . . Rewire . | . . . . . . . . . . . . Trap . | . . . . . . . . . . . . Miscellaneous . | . . . . . . . . . . . . Route ------- -11/Scrapyard -10/Materials -10/Mines -10/Exiles -9/Mines (discovered 2 exits: *Mat x2) -8/Materials (discovered 2 exits: Fac / Gar) -8/Garrison (discovered 3 exits: *Mat x3) -8/Materials (discovered 2 exits: *Fac / [*Sto]) -7/Factory -7/DSF -6/Factory -6/Garrison History --------- Turn | Location | Event 1 | -11/Scrapyard | Discovered new exit (range 2) 9 | -11/Scrapyard | Entered Materials 42 | -10/Materials | Discovered new exit (range 15) 62 | -10/Materials | Entered Mines 134 | -10/Mines | Assembled infested the area 156 | -10/Mines | Met 8R-AWN 242 | -10/Mines | Discovered new exit (range 5) 245 | -10/Mines | Entered Exiles 264 | -10/Exiles | Welcomed by 8R-AWN 277 | -10/Exiles | Met EX-HEX 299 | -10/Exiles | Met EX-BIN 309 | -10/Exiles | Aligned with FarCom system 309 | -10/Exiles | Given EX-Vault access code 317 | -10/Exiles | Build established: Mutant 327 | -10/Exiles | Opened EX-Vault 334 | -10/Exiles | Found Skeleton Box 349 | -10/Exiles | Warned to stay clear of 0b10 Research branches 371 | -10/Exiles | Met EX-DEC 408 | -10/Exiles | Discovered new exit (range 10) 415 | -10/Exiles | Left Exiles lab with Skeleton Box 415 | -10/Exiles | Entered Mines 418 | -9/Mines | Met a Derelict shopkeep closing up shop 445 | -9/Mines | Learned Materials garrison access intel 674 | -9/Mines | Discovered new exit (range 9) 713 | -9/Mines | Received a Mining Laser from a helpful Derelict 769 | -9/Mines | Discovered new exit (range 9) 771 | -9/Mines | Learned 2 Materials zone layouts 782 | -9/Mines | A weapon hastily lodged in a ceiling crevice suddenly fell to the ground 895 | -9/Mines | Entered Materials 895 | -8/Materials | Accompanied by 1 ally 895 | -8/Materials | Evolved 4 slots: Utility x4 896 | -8/Materials | Identified exit to Factory 897 | -8/Materials | Loaded intel: 1 garrison access location 912 | -8/Materials | Identified exit to Garrison 916 | -8/Materials | Entered Garrison 916 | -8/Garrison | Accompanied by 1 ally 946 | -8/Garrison | Rescued a captive Derelict 1058 | -8/Garrison | Triggered checkpoint 1150 | -8/Garrison | Triggered checkpoint 1212 | -8/Garrison | Discovered new exit (range 12) 1268 | -8/Garrison | Build established: Scavenger-Mutant 1282 | -8/Garrison | Triggered checkpoint 1500 | -8/Garrison | Discovered new exit (range 12) 1524 | -8/Garrison | Triggered checkpoint 2060 | -8/Garrison | Triggered checkpoint 2345 | -8/Garrison | Discovered new exit (range 10) 2372 | -8/Garrison | Build established: Mutant 2405 | -8/Garrison | Installed Relay Interface Framework 2424 | -8/Garrison | Core integrity fell below 50% 2425 | -8/Garrison | Entered Materials 2431 | -8/Materials | Discovered new exit (range 15) 2455 | -8/Materials | Lost 3 parts (1p2w) 2767 | -8/Materials | Build established: Scavenger-Mutant 2898 | -8/Materials | Discovered exit to Factory (range 12) 2935 | -8/Materials | Entered Factory 2935 | -7/Factory | Evolved 2 slots: Propulsion x1, Utility x1 3026 | -7/Factory | Identified exit to DSF 3091 | -7/Factory | Build established: Mutant 3215 | -7/Factory | Entered DSF 3308 | -7/DSF | Additional patrols routed to DSF 3642 | -7/DSF | Sterilization system engaged 3662 | -7/DSF | Ambient heat levels rising (+10) 3674 | -7/DSF | Destroyed 7 combat bots 3675 | -7/DSF | Lost 9 parts (1p7u1w) 3677 | -7/DSF | Ambient heat levels rising (+10) 3692 | -7/DSF | Ambient heat levels rising (+10) 3707 | -7/DSF | Ambient heat levels rising (+10) 3722 | -7/DSF | Ambient heat levels rising (+10) 3737 | -7/DSF | Ambient heat levels rising (+10) 3752 | -7/DSF | Ambient heat levels rising (+10) 3762 | -7/DSF | Discovered new exit (range 15) 3767 | -7/DSF | Ambient heat levels rising (+10) 3779 | -7/DSF | Entered Factory 3779 | -6/Factory | Evolved 2 slots: Propulsion x1, Utility x1 4454 | -6/Factory | Repaired Angular Momentum Engine 5630 | -6/Factory | Lost 9 parts (1p1n5u2w) 5675 | -6/Factory | Identified exit to Garrison 5678 | -6/Factory | Entered Garrison 5697 | -6/Garrison | Expanded RIF knowledge: Structural Interface 5729 | -6/Garrison | Garrison Relay disabled 5746 | -6/Garrison | Expanded RIF knowledge: Command Fork 5783 | -6/Garrison | Garrison Relay disabled 5788 | -6/Garrison | Triggered checkpoint 5876 | -6/Garrison | Core integrity fell below 50% 5908 | -6/Garrison | Self-destructed Last Messages --------------- 05811_ RIF reveals location of phase wall. 05815_ Dropped Thermic Laser. 05817_ Dropped Angular Momentum Engine. 05839_ Y-54 Guardian destroyed. 05842_ Acquired 45 matter. 05859_ Guardian 5a destroyed. 05859_ Slug penetrates Y-54 Guardian. 05859_ Slug penetrates Reinforced Barrier. 05878_ Imp. Hacking Suite destroyed. 05883_ Slug penetrates Wall. 05883_ Nuclear Pulse Thruster destroyed. 05883_ Slug penetrates Wall. 05884_ Jacked Y-54 Guardian... >>overwrite_iff Rewriting IFF filter. 05887_ Slug penetrates Y-54 Guardian. 05895_ Network quickbooting Y-54 Guardian, ETC: 10. 05905_ Y-54 Guardian reactivates. 05905_ Imp. Datajack destroyed. Map ----- +----------------------------------------------------+ | ?????????????????????????????????????????????? | | ?????????????????????????????????????????????? | | ?????????????????????????????????????????????? | | ?????????????????????????????????????????????? | | ?????????????????????????????????????????????? | | ?????????????????????????????????????????????? | | ?????????????????????????????????????????????? | | ?????????????????????????????????????????????? | | ???????????????????g?????????????????????????? | | ???????????????????g?????????????????????????? | | ?????????????????????????????????????????????? | | ?????????????????????????????????????????????? | | ?????????????????????????????????????????????? | | ?????????????????????????????????????????????? | | ?????????????????????????????????????????????? | | ?????????????????????????????????????????????? | | ?????????????????????????????????????????????? | | ?????????????????????????????????###??????? | | ?????????????????????????????????# ??????" | | ?????????????????????????????????# #??????" | | ?????????????????????????????????# #??????? | | ????????????????????????????????##+######## | | ????????????????????????????????# | | ??????????????????#######???????# | | ??????????????????#!!=[[#???????# #####+## | | ??????????????????#!!@[[#???????# #???# ?# | | ??????????????????###Y###???????# #???# #?# | | ????????????????????#[#?????????# +??? #?# | | ????????????????????#%#?????????# #???# ?+ | | ????????????????????#*#########?# #???# #?# | | ????????????????????#[+ !%+ #?# #???# #?# | | ???????????????????##=##### ### #####+### | | ??????????????????# + | | ??????????????????# + | | ??????????????????#########+++### ########## | | ?????????????????????????# ! ## #???????## | | ?????????????????????????#"""" ## #???????# | | ?????????????????????????######## #???????#" | | ????????????????????????????????# #???????#" | | ????????????????????????????????# #####???#" | | ????????????????????????????????# #!!!#####"" | | ????????????????????????????????# + #### | | ????????????????????????????????# #!!!## #??? | | ????????????????????????????????# ###### #??? | | ???????????????????????########## #????# #??? | | ???????????????????????# #????# #??? | | ???????????????????????# #????# #??? | | ???????????????????????# #########????# #??? | | ???????????????????????# #########????# #+## | | ???????????????????????##+### ###### # "" | +----------------------------------------------------+ Best States ------------- Heat Dissipation 64 Coolant Potential 130 Energy Generation 18 Energy Capacity 310 Matter Stores 300 Matter Capacity 300 Sight Range 16 Terrain Scan Density 210 Additional Mass Support 9 Armor Coverage 675 Resistance: TH 10 Weapon Cycling 15 Phase Shifting 5 Evasion (%) 62 Targeting Accuracy 8 Kinecelleration 30 Offensive Hacking 22 Defensive Hacking 10 Relay Coupler Types 2 Relay Coupler Value 40 Authchip Count 1 Item Schematics ----------------- Cmb. Airjet | -8/Materials | Scanalyzed System Restoration Module | -8/Materials | Scanalyzed Force Booster | -8/Materials | Scanalyzed Flak Cannon | -8/Materials | Scanalyzed Fission Core | -6/Factory | Hacked Robot Schematics ------------------ None Fabricated ------------ Nothing Alien Tech Used ----------------- None Achievements -------------- None Challenges ------------ None Game ------ Seed DecoderFocalClaw Manual? 0 Play Time 00:50:15 Cumulative 104.8 hours Start 2024.09.22 @ 11:23:31 End 2024.09.22 @ 12:56:05 Sessions 1 Manual Loads 0 Difficulty Rogue Special Mode None Game No. 161 Rogue 157 Adventurer 4 Explorer 0 Win Type - Total 0 Types 0/0/0/0/0/0/0/0/0 Lore% 48 Gallery% 57 Achievement% 42 Wizard Run 0 Options --------- Layout 2 ASCII 0 Keyboard 0 Movement Mouse Keybinds 0 Fullscreen 2 Font 24/Smallcaps Map View 50x44 Zoom Use 0% Tactical HUD 1 Map Filters NONE Filters NONE Steam 1 RUN: 4277ad09-ff25-4238-a583-fae69999c58f